bitfinex-derivatives/quotes_SOLF0:USTF0_20260126
["timestamp","ask_amount","ask_price","bid_price","bid_amount"]
[1769437316825,3.27712274,122.97,122.92,10.82765596]
[1769437318429,5.70230404,122.94,122.86,3.49925596]
[1769437318725,5.70230404,122.94,122.87,3.49925596]
[1769437320034,7.3282,122.93,122.87,3.49925596]
[1769437320422,3.27712274,122.91,122.85,5.92443726]
[1769437320628,3.27712274,122.91,122.85,3.49925596]
[1769437320929,10.60672274,122.91,122.85,10.83205596]
[1769437322127,3.27712274,122.91,122.85,10.83205596]
[1769437322429,3.27712274,122.93,122.87,3.49925596]
[1769437323428,5.70230404,122.93,122.87,3.49925596]
[1769437323621,5.70230404,122.93,122.85,2.4251813]
[1769437323622,3.27712274,122.92,122.85,2.4251813]
[1769437324024,2.4251813,122.91,122.84,5.92443726]
[1769437324629,5.70230404,122.91,122.84,5.92443726]
[1769437325029,5.70230404,122.91,122.85,7.3325]
[1769437325827,5.70230404,122.91,122.85,10.83175596]
[1769437330835,5.70230404,122.91,122.86,7.3322]
[1769437331029,3.27712274,122.91,122.86,7.3322]
[1769437336035,113.9779,122.95,122.84,2.4251813]
[1769437336036,3.27712274,122.89,122.84,7.3331]
[1769437336232,3.27712274,122.88,122.84,7.3331]
[1769437336538,3.27712274,122.88,122.83,3.49925596]
[1769437336735,2.4251813,122.87,122.82,7.3343]
[1769437336936,5.70230404,122.88,122.82,7.3343]
[1769437338330,5.70230404,122.88,122.83,7.3337]
[1769437338631,5.8595393,122.92,122.85,3.21463369]
[1769437338933,5.8595393,122.91,122.85,3.21463369]
[1769437339134,3.434358,122.9,122.84,2.4251813]
[1769437339336,3.434358,122.9,122.83,5.63981499]
[1769437339535,10.764358,122.9,122.84,7.333]
[1769437339737,10.764358,122.9,122.84,9.7581813]
[1769437340037,3.434358,122.9,122.85,7.3329]
[1769437340339,3.434358,122.9,122.85,9.7580813]
[1769437340935,3.434358,122.89,122.84,2.4251813]
[1769437341237,3.434358,122.89,122.82,2.4251813]
[1769437341440,3.434358,122.88,122.82,2.4251813]
[1769437342534,3.434358,122.88,122.82,5.63981499]
[1769437342735,3.434358,122.88,122.83,2.4251813]
[1769437342940,10.765458,122.88,122.83,2.4251813]
[1769437343133,10.765458,122.88,122.82,12.97451499]
[1769437346243,10.765458,122.88,122.83,2.4251813]
[1769437346634,10.765458,122.88,122.82,12.97451499]
[1769437348245,10.764858,122.9,122.84,2.4251813]
[1769437350647,3.434358,122.9,122.84,9.7585813]
[1769437350945,3.434358,122.9,122.85,2.4251813]
[1769437352753,3.434358,122.9,122.84,9.7585813]
[1769437353756,3.434358,122.9,122.85,10.54753369]
[1769437355650,3.434358,122.9,122.85,12.97271499]
[1769437356350,10.764458,122.9,122.85,3.21463369]
[1769437356751,3.434358,122.89,122.81,3.21463369]
[1769437356954,438.913,122.94,122.81,3.21463369]
[1769437356955,5.8595393,122.88,122.82,3.21463369]
[1769437357150,3.434358,122.88,122.82,5.63981499]
[1769437357959,3.434358,122.88,122.82,12.97441499]
[1769437362663,3.434358,122.88,122.83,12.97381499]
[1769437364463,2.4251813,122.9,122.84,3.21463369]
[1769437364766,3.434358,122.89,122.84,5.63981499]
[1769437364967,3.434358,122.89,122.84,12.97321499]
[1769437365665,3.434358,122.91,122.85,7.3328]
[1769437365963,3.434358,122.91,122.85,9.7579813]
[1769437367155,10.18121567,122.91,122.85,9.7579813]
[1769437367667,3.434358,122.91,122.85,9.7579813]
[1769437367869,3.434358,122.91,122.86,5.63981499]
[1769437369865,335.66012199,122.93,122.87,10.58109123]
[1769437370263,335.66012199,122.93,122.87,13.00627253]
[1769437370869,335.66012199,122.93,122.87,10.58109123]
[1769437371870,3.39182199,122.92,122.87,10.58109123]
[1769437372071,10.72062199,122.92,122.87,3.24939123]
[1769437372267,3.39182199,122.91,122.86,7.3322]
[1769437373776,10.72122199,122.91,122.85,13.01139802]
[1769437373968,10.72122199,122.91,122.85,10.58229123]
[1769437374166,3.39182199,122.9,122.85,10.58229123]
[1769437375174,3.39182199,122.89,122.84,7.3335]
[1769437379079,3.39182199,122.89,122.83,13.01259802]
[1769437381088,3.39182199,122.89,122.83,5.67849802]
[1769437381681,10.72282199,122.89,122.83,5.67849802]
[1769437381888,3.39182199,122.89,122.83,5.67849802]
[1769437382885,7.3312,122.88,122.83,5.67849802]
[1769437384087,3.39182199,122.89,122.83,5.67849802]
[1769437384285,117.40782199,122.91,122.85,3.24939123]
[1769437384588,117.40782199,122.91,122.85,5.67849802]
[1769437385096,7.3301,122.89,122.85,5.67849802]
[1769437385790,7.3301,122.89,122.85,3.24939123]
[1769437386784,10.72192199,122.89,122.83,5.67849802]
[1769437386988,7.3307,122.88,122.83,3.24939123]
[1769437391092,3.39182199,122.89,122.83,3.24939123]
[1769437391093,10.72172199,122.89,122.83,3.24939123]
[1769437391284,10.72172199,122.89,122.83,5.67849802]
[1769437391489,3.39182199,122.91,122.86,3.24939123]
[1769437391687,3.39182199,122.93,122.87,3.24939123]
[1769437392498,5.82092878,122.93,122.87,3.24939123]
[1769437392798,3.39182199,122.92,122.87,3.24939123]
[1769437393094,10.72012199,122.92,122.87,3.24939123]
[1769437395996,10.72012199,122.92,122.87,5.67849802]
[1769437396196,10.72012199,122.92,122.87,3.24939123]
[1769437400900,3.35102219,122.9,122.85,13.31045286]
[1769437401301,7.3286,122.91,122.85,13.31045286]
[1769437401495,13.10872898,122.91,122.86,3.54914607]
[1769437401694,3.35102219,122.89,122.84,3.54914607]
[1769437401891,3.35102219,122.89,122.83,5.97825286]
[1769437402098,3.35102219,122.89,122.83,13.31155286]
[1769437403902,10.68092219,122.89,122.83,13.31155286]
[1769437406498,10.68092219,122.89,122.84,3.54914607]
[1769437407203,10.68012219,122.91,122.85,3.54914607]
[1769437407399,13.10922898,122.91,122.85,3.54914607]
[1769437407599,3.35102219,122.9,122.85,3.54914607]
[1769437407800,5.78012898,122.9,122.85,3.54914607]
[1769437408908,13.10972898,122.9,122.85,3.54914607]
[1769437410905,10.68062219,122.9,122.85,3.54914607]
[1769437416213,10.68112219,122.89,122.83,13.31155286]
[1769437417012,13.11022898,122.89,122.83,10.88244607]
[1769437427725,3.35102219,122.88,122.83,10.88244607]
[1769437449636,5.66731995,122.9,122.84,3.55515272]
[1769437449833,3.236808,122.91,122.85,3.55515272]
[1769437450134,3.236808,122.91,122.85,5.98566467]
[1769437450526,5.66731995,122.91,122.85,3.55515272]
[1769437450728,3.236808,122.9,122.85,3.55515272]
[1769437450926,3.236808,122.9,122.85,10.88725272]
[1769437452132,3.236808,122.89,122.85,7.3321]
[1769437452336,3.236808,122.89,122.84,7.3327]
[1769437452637,3.236808,122.9,122.84,5.98566467]
[1769437454038,3.236808,122.9,122.85,7.3322]
[1769437456437,5.66731995,122.9,122.85,7.3322]
[1769437457035,3.236808,122.89,122.85,7.3322]
[1769437457230,3.236808,122.89,122.82,17.60647592]
[1769437457441,3.236808,122.88,122.83,3.55515272]
[1769437458438,3.236808,122.88,122.84,3.29185514]
[1769437459436,9.75981195,122.9,122.84,5.72236709]
[1769437459437,10.71927675,122.9,122.84,5.72236709]
[1769437460240,10.71927675,122.9,122.85,3.44912092]
[1769437460544,10.71867675,122.91,122.85,3.44912092]
[1769437461538,10.71867675,122.91,122.85,10.78112092]
[1769437462439,3.38997675,122.91,122.86,3.44912092]
[1769437463044,10.71807675,122.92,122.87,3.44912092]
[1769437464248,3.38997675,122.91,122.86,10.78062092]
[1769437467155,3.38997675,122.9,122.85,7.3322]
[1769437468161,3.38997675,122.9,122.85,10.78132092]
[1769437470456,3.38997675,122.9,122.86,3.44912092]
[1769437471757,10.71807675,122.92,122.86,3.44912092]
[1769437472660,10.71807675,122.92,122.86,10.78062092]
[1769437472958,7.3281,122.92,122.87,3.44912092]
[1769437475959,3.38997675,122.93,122.88,10.77942092]
[1769437482358,5.8204887,122.95,122.89,10.77882092]
[1769437482864,3.38997675,122.94,122.89,10.77882092]
[1769437491577,10.71687675,122.94,122.89,3.44912092]
[1769437493172,13.1473887,122.94,122.89,3.44912092]
[1769437493575,13.1454529,122.94,122.89,3.44912092]
[1769437494679,13.22127872,122.93,122.87,3.29283313]
[1769437495190,324.84,122.96,122.85,10.62443313]
[1769437495191,5.89377872,122.91,122.85,10.62443313]
[1769437495384,5.89377872,122.91,122.86,3.29283313]
[1769437495891,3.46520257,122.89,122.84,10.62553313]
[1769437496079,5.89377872,122.89,122.84,10.62553313]
[1769437496285,3.46520257,122.89,122.84,10.62553313]
[1769437496485,3.46520257,122.89,122.84,13.05410928]
[1769437498582,3.46520257,122.89,122.84,10.62553313]
[1769437500393,3.46520257,122.93,122.86,3.29283313]
[1769437500592,3.46520257,122.93,122.88,3.29283313]
[1769437501790,3.46520257,122.93,122.88,10.62313313]
[1769437506591,3.46520257,122.93,122.89,3.29283313]
[1769437506793,3.46520257,122.95,122.89,13.05110928]
[1769437506987,330.75377872,122.97,122.9,5.72140928]
[1769437507192,328.32520257,122.97,122.91,3.29283313]
[1769437507494,328.32520257,122.97,122.91,5.72140928]
[1769437507695,222.76094064,122.99,122.92,5.72140928]
[1769437507899,222.76094064,122.99,122.93,3.29283313]
[1769437508196,230.08484064,122.99,122.93,10.62023313]
[1769437508397,220.33236449,122.99,122.94,3.29283313]
[1769437508591,220.33236449,122.99,122.95,10.61903313]
[1769437508592,216.86716192,122.99,122.95,10.61903313]
[1769437508792,328.32520257,123.01,122.95,10.61903313]
[1769437509000,328.32520257,123.01,122.95,13.04760928]
[1769437509296,328.32520257,123.01,122.96,3.29283313]
[1769437509497,3.46520257,123.01,122.96,5.72140928]
[1769437509692,3.46520257,123.03,122.97,5.72140928]
[1769437510896,3.46520257,123.03,122.97,13.04640928]
[1769437511302,3.46520257,123.03,122.97,10.61783313]
[1769437512304,3.46520257,123.03,122.98,3.29283313]
[1769437512902,10.78670257,123.03,122.98,3.29283313]
[1769437514702,13.21527872,123.03,122.96,5.72140928]
[1769437514904,3.46520257,123.02,122.96,13.04690928]
[1769437515405,3.46520257,123.01,122.95,3.29283313]
[1769437516006,3.46520257,123.01,122.95,10.61903313]
[1769437517211,13.21647872,123.01,122.95,3.29283313]
[1769437517701,3.46520257,123.0,122.94,3.29283313]
[1769437517900,3.46520257,123.0,122.94,13.04820928]
[1769437519905,3.21349248,123.02,122.96,3.29753334]
[1769437520205,3.21349248,123.0,122.94,3.29753334]
[1769437520401,10.53749248,122.99,122.94,3.29753334]
[1769437522004,10.53789248,122.98,122.92,10.62523334]
[1769437523707,3.21349248,122.98,122.92,10.62523334]
[1769437523905,3.21349248,122.98,122.92,13.05380949]
[1769437524898,3.21349248,122.98,122.93,7.3273]
[1769437525108,3.21349248,122.98,122.93,9.75587615]
[1769437525310,3.21349248,122.98,122.93,13.05340949]
[1769437525697,3.21349248,122.98,122.93,10.62483334]
[1769437526102,3.21349248,122.98,122.93,3.29753334]
[1769437529713,3.21349248,122.97,122.91,5.72610949]
[1769437529918,3.21349248,122.96,122.91,3.29753334]
[1769437530117,5.64206863,122.96,122.91,3.29753334]
[1769437530410,3.21349248,122.95,122.9,7.3286]
[1769437530612,3.21349248,122.95,122.89,10.62733334]
[1769437530803,5.64206863,122.95,122.89,10.62733334]
[1769437532010,12.96826863,122.95,122.89,10.62733334]
[1769437532607,12.96826863,122.95,122.89,3.29753334]
[1769437532812,12.96886863,122.94,122.89,3.29753334]
[1769437533112,12.96886863,122.94,122.88,7.3303]
[1769437533314,12.96886863,122.94,122.87,10.62853334]
[1769437533315,10.54089248,122.93,122.87,10.62853334]
[1769437533711,12.96946863,122.93,122.87,10.62853334]
[1769437535023,5.64206863,122.92,122.86,7.3316]
[1769437535223,5.64206863,122.92,122.86,3.29753334]
[1769437535224,3.21349248,122.92,122.86,3.29753334]
[1769437535520,3.21349248,122.92,122.86,5.72610949]
[1769437536418,3.21349248,122.92,122.83,114.072]
[1769437536620,3.21349248,122.92,122.87,3.29753334]
[1769437537024,3.21349248,122.92,122.87,5.72610949]
[1769437537225,3.21349248,122.92,122.87,13.05700949]
[1769437538121,3.21349248,122.92,122.87,10.62843334]
[1769437559142,9.75638597,122.93,122.88,3.42410307]
[1769437562041,3.23580672,122.94,122.89,3.42410307]
[1769437562246,3.23580672,122.96,122.9,3.42410307]
[1769437562441,3.23580672,122.96,122.91,3.42410307]
[1769437563145,324.86,122.99,122.92,10.75210307]
[1769437563146,5.66479269,122.98,122.92,10.75210307]
[1769437563541,3.23580672,122.98,122.92,13.18108904]
[1769437563942,5.66479269,122.98,122.92,10.75210307]
[1769437564947,12.98929269,122.98,122.92,10.75210307]
[1769437567145,3.23580672,122.98,122.92,20.83630519]
[1769437567341,3.23580672,122.98,122.92,23.26529116]
[1769437568346,3.23580672,122.98,122.92,13.18108904]
[1769437569048,3.23580672,122.98,122.92,23.26529116]
[1769437570245,3.23580672,122.98,122.92,20.83630519]
[1769437571950,12.98929269,122.98,122.92,20.83630519]
[1769437574145,10.56030672,122.98,122.93,3.42410307]
[1769437578248,3.23580672,122.98,122.93,3.42410307]
[1769437580059,3.49425868,122.97,122.91,10.55760339]
[1769437580264,3.49425868,122.96,122.91,10.55760339]
[1769437582554,3.49425868,122.96,122.91,3.22900339]
[1769437582755,5.92324465,122.96,122.91,3.22900339]
[1769437583151,3.49425868,122.96,122.91,3.22900339]
[1769437584460,3.49425868,122.96,122.91,10.55740339]
[1769437584656,10.81865868,122.98,122.92,3.22900339]
[1769437585757,3.49425868,122.97,122.92,3.22900339]
[1769437585954,3.49425868,122.97,122.92,10.55690339]
[1769437586347,3.49425868,122.97,122.92,12.98588936]
[1769437588157,3.49425868,122.97,122.92,10.55690339]
[1769437591863,3.49425868,122.96,122.91,7.3286]
[1769437592055,3.49425868,122.96,122.91,10.55760339]
[1769437592663,3.49425868,122.96,122.92,3.22900339]
[1769437593465,3.49425868,122.96,122.92,10.55700339]
[1769437595660,10.81985868,122.96,122.9,5.65798936]
[1769437595856,3.49425868,122.95,122.9,3.22900339]
[1769437596662,10.82065868,122.95,122.9,3.22900339]
[1769437596863,3.49425868,122.94,122.88,5.65798936]
[1769437597265,3.49425868,122.94,122.88,2.42898597]
[1769437597562,3.49425868,122.94,122.89,3.22900339]
[1769437598967,3.49425868,122.94,122.88,17.41410212]
[1769437598968,3.49425868,122.93,122.88,17.41410212]
[1769437599163,3.49425868,122.93,122.88,9.75888597]
[1769437599368,3.49425868,122.93,122.88,12.98788936]
[1769437601379,3.49425868,122.93,122.89,7.3298]
[1769437603379,3.49425868,122.93,122.89,12.98778936]
[1769437604779,10.82055868,122.95,122.89,12.98778936]
[1769437604969,10.82055868,122.95,122.9,2.42898597]
[1769437605175,10.82055868,122.95,122.89,12.98778936]
[1769437605477,3.49425868,122.94,122.89,12.98778936]
[1769437605678,3.49425868,122.94,122.89,23.07199148]
[1769437606773,3.49425868,122.94,122.89,20.64300551]
[1769437607873,7.3263,122.95,122.9,3.22900339]
[1769437608183,10.82055868,122.95,122.9,3.22900339]
[1769437608779,3.24210699,122.93,122.89,10.08420212]
[1769437608985,3.24210699,122.93,122.88,13.51589888]
[1769437609286,3.24210699,122.93,122.88,3.43169676]
[1769437609986,3.24210699,122.93,122.88,10.76209676]
[1769437610286,3.24210699,122.93,122.88,7.3304]
[1769437610490,2.42898597,122.93,122.88,10.76209676]
[1769437610783,3.24210699,122.92,122.87,10.76259676]
[1769437611588,3.24210699,122.92,122.88,7.3303]
[1769437619284,3.24210699,122.92,122.88,10.76199676]
[1769437619488,2.4289581,122.95,122.9,3.43169676]
[1769437619688,12.99716509,122.96,122.9,3.43169676]
[1769437620190,10.56820699,122.96,122.9,5.86065486]
[1769437620788,10.56820699,122.96,122.9,10.76039676]
[1769437621096,3.24210699,122.96,122.91,3.43169676]
[1769437621487,9.7551581,122.95,122.89,3.43169676]
[1769437621683,5.67106509,122.96,122.9,3.43169676]
[1769437622089,12.99676509,122.96,122.9,10.76079676]
[1769437630398,3.24210699,122.95,122.9,10.76079676]
[1769437634103,3.24210699,122.95,122.9,13.18975486]
[1769437634399,337.81616509,122.97,122.91,10.76009676]
[1769437634802,335.38720699,122.97,122.91,10.76009676]
[1769437635205,335.38720699,122.97,122.91,13.18905486]
[1769437635901,10.56780699,122.96,122.91,3.43169676]
[1769437636706,10.56780699,122.96,122.91,13.18915486]
[1769437637102,10.56780699,122.96,122.92,3.43169676]
[1769437637406,579.40354596,123.04,122.95,5.86065486]
[1769437637407,3.24210699,123.0,122.95,5.86065486]
[1769437637701,328.04210699,123.02,122.96,5.86065486]
[1769437638298,330.47106509,123.02,122.96,3.43169676]
[1769437638807,328.04210699,123.02,122.96,3.43169676]
[1769437639106,7.3227,123.01,122.96,5.86065486]
[1769437639600,328.04210699,123.02,122.95,2.4289581]
[1769437639601,10.86415617,123.0,122.95,2.4289581]
[1769437640004,10.86415617,123.0,122.95,5.88054878]
[1769437640403,10.86415617,123.0,122.95,3.45159068]
[1769437642310,10.86415617,123.0,122.95,10.77779068]
[1769437642711,10.86415617,123.0,122.95,13.20674878]
[1769437645411,7.3227,123.01,122.96,5.88054878]
[1769437645612,10.86335617,123.01,122.96,3.45159068]
[1769437646514,13.29231427,123.01,122.96,3.45159068]
[1769437651813,10.86335617,123.01,122.96,3.45159068]
[1769437652114,13.29231427,123.01,122.96,3.45159068]
[1769437653716,3.54065617,123.1,122.96,3.45159068]
[1769437653922,3.54065617,123.11,123.05,3.45159068]
[1769437655313,3.54065617,123.11,123.05,13.20034878]
[1769437656007,2.4289581,123.12,123.06,10.77119068]
[1769437656213,3.54065617,123.13,123.07,5.88054878]
[1769437657008,3.54065617,123.13,123.09,2.4289581]
[1769437657208,3.54065617,123.13,123.08,2.4289581]
[1769437657717,3.54065617,123.13,123.07,5.88054878]
[1769437658316,3.54065617,123.13,123.07,13.19944878]
[1769437659711,2.4289581,123.14,123.09,3.45159068]
[1769437659915,3.54065617,123.14,123.09,3.45159068]
[1769437661308,3.54065617,123.14,123.06,3.45159068]
[1769437661515,13.28581427,123.12,123.05,3.45159068]
[1769437661816,2.4289581,123.11,123.05,3.45159068]
[1769437663816,10.85685617,123.12,123.05,3.45159068]
[1769437663817,3.54065617,123.12,123.06,3.45159068]
[1769437664016,5.96961427,123.12,123.06,3.45159068]
[1769437665022,3.54065617,123.12,123.06,3.45159068]
[1769437665218,5.96961427,123.12,123.06,3.45159068]
[1769437665921,5.96961427,123.11,123.04,3.45159068]
[1769437666123,2.4289581,123.1,123.04,3.45159068]
[1769437666722,5.96961427,123.11,123.05,3.45159068]
[1769437667222,5.96961427,123.09,123.03,3.45159068]
[1769437668015,5.96961427,123.09,123.03,10.77259068]
[1769437669523,3.54065617,123.09,123.04,10.75335488]
[1769437669717,5.80624191,123.11,123.05,3.43265488]
[1769437670617,3.37728381,123.11,123.05,13.18181298]
[1769437671523,3.37728381,123.11,123.06,3.43265488]
[1769437671724,5.80624191,123.13,123.06,13.18111298]
[1769437673626,3.37728381,123.13,123.07,13.18061298]
[1769437674324,13.12184191,123.13,123.07,3.43265488]
[1769437675126,3.37728381,123.13,123.07,5.86161298]
[1769437675715,3.37728381,123.13,123.07,5.85326771]
[1769437676124,5.79789664,123.11,123.05,3.43265488]
[1769437676426,3.37728381,123.11,123.05,3.43265488]
[1769437677022,3.37728381,123.11,123.06,7.3196]
[1769437679129,3.37728381,123.11,123.05,13.17346771]
[1769437679520,3.37728381,123.08,123.0,3.43265488]
[1769437679832,5.79789664,123.07,123.0,5.85326771]
[1769437680129,2.42061283,123.06,123.0,3.43265488]
[1769437680331,2.42061283,123.05,123.0,10.75585488]
[1769437681029,2.42061283,123.04,122.98,10.75675488]
[1769437681223,3.37728381,123.03,122.96,3.43265488]
[1769437681422,5.79789664,123.03,122.96,3.43265488]
[1769437681627,10.69888381,123.03,122.97,7.325]
[1769437681832,13.11949664,123.03,122.97,7.325]
[1769437682032,13.11949664,123.03,122.96,3.43265488]
[1769437682232,2.42061283,123.02,122.96,10.75825488]
[1769437683733,13.11949664,123.03,122.97,3.43265488]
[1769437686134,2.42061283,123.02,122.97,3.43265488]
[1769437687630,9.74271283,123.02,122.97,3.43265488]
[1769437687831,2.42061283,123.01,122.97,3.43265488]
[1769437689137,2.42061283,123.02,122.97,3.43265488]
[1769437690942,5.79789664,123.03,122.97,3.43265488]
[1769437692649,13.11939664,123.03,122.97,3.43265488]
[1769437693138,3.37728381,123.03,122.97,13.17816771]
[1769437693942,5.79789664,123.06,123.0,3.43265488]
[1769437694935,13.11759664,123.06,123.0,3.43265488]
[1769437695138,3.37728381,123.05,123.0,3.43265488]
[1769437695543,5.79789664,123.05,123.0,3.43265488]
[1769437695936,13.11829664,123.05,123.0,3.43265488]
[1769437696740,13.11829664,123.05,122.98,13.17766771]
[1769437697342,13.11829664,123.05,122.98,10.75705488]
[1769437697549,3.37728381,123.04,122.98,10.75705488]
[1769437698945,5.79789664,123.04,122.98,10.75705488]
[1769437700454,3.37728381,123.04,122.98,10.75705488]
[1769437704158,3.37728381,123.04,122.99,3.33208418]
[1769437712562,3.48907343,123.03,122.98,2.42061283]
[1769437712767,3.48907343,123.02,122.97,10.65688418]
[1769437713262,5.90968626,123.02,122.97,10.65688418]
[1769437713666,3.48907343,123.02,122.97,10.65688418]
[1769437713861,10.81107343,123.02,122.97,10.65688418]
[1769437720160,3.48907343,123.04,122.98,13.07709701]
[1769437720362,3.48907343,123.04,122.99,3.33208418]
[1769437720765,3.48907343,123.04,122.99,10.65578418]
[1769437721667,3.48907343,123.0,122.93,3.33208418]
[1769437721875,3.48907343,122.98,122.93,3.33208418]
[1769437727170,3.48907343,122.98,122.93,10.65938418]
[1769437727371,3.48907343,122.98,122.93,5.75269701]
[1769437728576,5.63634127,123.0,122.93,5.75269701]
[1769437728882,3.21572844,123.0,122.94,10.58177493]
[1769437729182,3.21572844,123.0,122.94,13.00238776]
[1769437730581,5.63634127,123.0,122.94,10.58177493]
[1769437730977,5.63634127,122.99,122.93,7.3274]
[1769437731173,5.63634127,122.98,122.91,3.25547493]
[1769437731381,3.21572844,122.97,122.91,3.25547493]
[1769437732069,3.21572844,122.96,122.91,3.25547493]
[1769437732474,5.63634127,122.96,122.89,3.25547493]
[1769437732783,5.63634127,122.94,122.88,3.25547493]
[1769437733178,3.21572844,122.94,122.88,3.25547493]
[1769437733580,5.63634127,122.94,122.88,3.25547493]
[1769437734080,5.63634127,122.94,122.88,10.58577493]
[1769437734783,3.21572844,122.93,122.88,3.25547493]
[1769437735581,5.63634127,122.93,122.86,2.42061283]
[1769437735783,5.63634127,122.93,122.86,5.67608776]
[1769437737585,5.64485815,122.93,122.86,5.68460464]
[1769437737982,5.64485815,122.93,122.86,13.01600464]
[1769437738182,3.21572844,122.93,122.87,2.42912971]
[1769437738781,3.21572844,122.93,122.86,13.01600464]
[1769437739486,3.21572844,122.93,122.87,3.25547493]
[1769437739686,3.21572844,122.93,122.87,5.68460464]
[1769437739888,3.21572844,122.93,122.88,3.25547493]
[1769437740080,3.21572844,122.93,122.88,5.68460464]
[1769437740481,3.21572844,122.93,122.88,13.01490464]
[1769437741382,113.9307,122.99,122.92,2.42912971]
[1769437741589,113.9307,122.99,122.9,5.68460464]
[1769437741590,2.42912971,122.98,122.9,5.68460464]
[1769437741890,2.42912971,122.97,122.9,5.68460464]
[1769437742087,327.70484774,123.06,122.96,2.42912971]
[1769437742282,2.42912971,123.04,122.96,2.42912971]
[1769437742891,9.75052971,123.04,122.96,9.75472971]
[1769437743284,2.42912971,123.04,122.96,9.75472971]
[1769437743484,3.21572844,123.03,122.96,9.75472971]
[1769437743788,3.21572844,123.03,122.96,13.01020464]
[1769437744784,3.21572844,123.01,122.94,13.01110464]
[1769437744985,3.21572844,123.0,122.94,13.01110464]
[1769437748098,3.21572844,123.04,122.98,5.68460464]
[1769437748492,3.21572844,123.04,122.99,2.42912971]
[1769437748695,3.21572844,123.04,123.0,2.42912971]
[1769437749193,3.21572844,123.04,122.99,2.42912971]
[1769437751194,217.05057618,123.06,122.99,13.00830464]
[1769437751397,217.05057618,123.06,123.0,5.68460464]
[1769437751896,217.05057618,123.06,123.02,2.42912971]
[1769437753197,217.05057618,123.06,123.01,9.75172971]
[1769437753493,3.21572844,123.06,123.01,9.75172971]
[1769437754089,3.21572844,123.04,122.97,10.58007493]
[1769437754290,3.21572844,123.01,122.95,3.25547493]
[1769437754502,3.21572844,123.01,122.95,5.68460464]
[1769437755705,3.21572844,123.01,122.95,3.25547493]
[1769437755902,3.21572844,123.01,122.95,10.58157493]
[1769437757605,10.53842844,123.01,122.95,3.25547493]
[1769437758403,3.30298484,122.99,122.92,3.2429904]
[1769437758903,3.5123689,122.98,122.92,10.5704904]
[1769437759303,438.5417,123.02,122.9,10.88681831]
[1769437759304,3.5123689,122.97,122.9,10.88681831]
[1769437760195,3.5123689,122.97,122.9,3.55811831]
[1769437761398,10.8386689,122.95,122.88,3.55811831]
[1769437762205,113.9228,123.0,122.89,3.55811831]
[1769437762206,3.5123689,122.97,122.89,3.55811831]
[1769437763201,3.5123689,122.97,122.9,3.55811831]
[1769437763907,3.5123689,122.97,122.91,7.3285]
[1769437764107,3.5123689,122.97,122.91,10.88661831]
[1769437766207,7.3246,122.98,122.92,3.55811831]
[1769437768104,7.3246,122.98,122.92,10.88601831]
[1769437768914,152.0323689,122.99,122.92,10.88601831]
[1769437769207,152.0323689,122.99,122.93,3.55811831]
[1769437770008,159.3562689,122.99,122.93,3.55811831]
[1769437774006,3.5123689,122.98,122.93,3.55811831]
[1769437775304,3.5123689,122.98,122.92,7.3279]
[1769437777609,3.5123689,122.98,122.92,9.75464093]
[1769437778210,3.5123689,122.98,122.92,13.31275924]
[1769437778612,10.8368689,122.98,122.92,13.31275924]
[1769437783314,13.26360983,122.98,122.92,10.88601831]
[1769437784609,155.8439,122.99,122.94,3.55811831]
[1769437784810,3.5123689,123.0,122.94,5.98485924]
[1769437785609,3.5123689,123.0,122.94,3.55811831]
[1769437786011,10.8356689,123.0,122.94,10.88491831]
[1769437787016,10.8356689,123.0,122.95,7.3262]
[1769437787410,13.26140983,123.02,122.95,5.98485924]
[1769437788019,13.26140983,123.02,122.96,3.55811831]
[1769437789017,13.26140983,123.02,122.96,10.88371831]
[1769437794721,5.88380448,122.99,122.94,10.70281127]
[1769437794922,2.42674093,122.98,122.94,10.70281127]
[1769437795830,5.88380448,122.99,122.94,10.70281127]
[1769437796126,13.20770448,122.99,122.94,10.70281127]
[1769437797429,13.20770448,122.99,122.94,3.37651127]
[1769437797625,7.3245,122.98,122.94,3.37651127]
[1769437798327,5.88380448,122.99,122.94,3.37651127]
[1769437798328,7.3251,122.97,122.94,3.37651127]
[1769437798733,2.42674093,122.97,122.9,2.42674093]
[1769437799641,113.92,123.0,122.92,2.42729019]
[1769437799642,3.45706355,123.0,122.92,2.42729019]
[1769437799935,2.42729019,122.98,122.92,2.42729019]
[1769437800134,5.88435374,122.97,122.91,2.42729019]
[1769437800340,2.42729019,122.96,122.89,2.42729019]
[1769437800634,2.42729019,122.98,122.93,3.37651127]
[1769437800834,5.88435374,122.96,122.9,3.37651127]
[1769437801038,3.45706355,122.96,122.89,3.37651127]
[1769437801236,5.88435374,122.98,122.91,3.37651127]
[1769437801443,2.42729019,122.96,122.91,3.37651127]
[1769437801830,7.3256,122.96,122.91,3.37651127]
[1769437802939,9.75359019,122.95,122.89,3.37651127]
[1769437803129,3.45706355,122.96,122.86,3.37651127]
[1769437803130,5.88435374,122.93,122.86,3.37651127]
[1769437803329,5.88435374,122.93,122.86,2.42729019]
[1769437803535,3.45706355,122.95,122.89,3.37651127]
[1769437803835,5.88435374,122.95,122.89,3.37651127]